fUST/lending_fUST_20250210
["ID","MTS","AMOUNT","RATE_DAILY","PERIOD"]
[352506276,1739141450725,-500.0,0.00016438,3]
[352506277,1739141450735,-313.51722936,0.00016438,3]
[352506278,1739141450744,-188.0,0.00016438,2]
[352506279,1739141450753,-188.0,0.00016438,2]
[352506280,1739141450761,-188.0,0.00016438,2]
[352506281,1739141450771,-188.0,0.00016438,2]
[352506282,1739141450780,-188.0,0.00016438,2]
[352506283,1739141450790,-188.0,0.00016438,2]
[352506284,1739141450799,-188.0,0.00016438,2]
[352506285,1739141450809,-188.0,0.00016438,2]
[352506286,1739141450818,-188.0,0.00016438,2]
[352506287,1739141450827,-188.0,0.00016438,2]
[352506288,1739141450836,-188.0,0.00016438,2]
[352506289,1739141450846,-188.0,0.00016438,2]
[352506290,1739141450855,-188.0,0.00016438,2]
[352506291,1739141450865,-188.0,0.00016438,2]
[352506292,1739141450874,-188.0,0.00016438,2]
[352506293,1739141450884,-188.0,0.00016438,2]
[352506294,1739141450893,-188.0,0.00016438,2]
[352506295,1739141450903,-188.0,0.00016438,2]
[352506296,1739141450913,-199.56375224,0.00016438,2]
[352506297,1739141450924,-344.42,0.00016438,2]
[352506298,1739141450935,-344.42,0.00016438,2]
[352506299,1739141450945,-344.42,0.00016438,2]
[352506300,1739141450955,-344.42,0.00016438,2]
[352506301,1739141450964,-344.42,0.00016438,2]
[352506302,1739141450974,-344.42,0.00016438,2]
[352506303,1739141450984,-344.42,0.00016438,2]
[352506304,1739141450994,-344.42,0.00016438,2]
[352506305,1739141451004,-344.42,0.00016438,2]
[352506306,1739141451014,-344.42,0.00016438,2]
[352506307,1739141451024,-344.42,0.00016438,2]
[352506308,1739141451034,-344.42,0.00016438,2]
[352506309,1739141451044,-344.42,0.00016438,2]
[352506310,1739141451054,-344.42,0.00016438,2]
[352506311,1739141451064,-344.42,0.00016438,2]
[352506312,1739141451074,-344.42,0.00016438,2]
[352506313,1739141451084,-344.42,0.00016438,2]
[352506314,1739141451094,-344.42,0.00016438,2]
[352506315,1739141451104,-344.42,0.00016438,2]
[352506316,1739141451114,-344.42,0.00016438,2]
[352506317,1739141451124,-344.42,0.00016438,2]
[352506318,1739141451134,-344.42,0.00016438,2]
[352506319,1739141451143,-344.42,0.00016438,2]
[352506320,1739141451152,-344.6451746,0.00016438,2]
[352506321,1739141451161,-500.0,0.00016438,2]
[352506322,1739141451171,-500.0,0.00016438,2]
[352506323,1739141451180,-500.0,0.00016438,2]
[352506324,1739141451191,-500.0,0.00016438,2]
[352506325,1739141451202,-500.0,0.00016438,2]
[352506326,1739141451212,-500.0,0.00016438,2]
[352506327,1739141451221,-500.0,0.00016438,2]
[352506328,1739141451231,-500.0,0.00016438,2]
[352506329,1739141451241,-500.0,0.00016438,2]
[352506330,1739141451250,-500.0,0.00016438,2]
[352506331,1739141451259,-382.79817983,0.00016438,2]
[352506332,1739141451272,-500.0,0.00016438,2]
[352506333,1739141451283,-500.0,0.00016438,2]
[352506334,1739141451292,-500.0,0.00016438,2]
[352506335,1739141451302,-500.0,0.00016438,2]
[352506336,1739141451311,-500.0,0.00016438,2]
[352506337,1739141451321,-500.0,0.00016438,2]
[352506338,1739141451330,-500.0,0.00016438,2]
[352506339,1739141451339,-500.0,0.00016438,2]
[352506340,1739141451349,-500.0,0.00016438,2]
[352506341,1739141451359,-500.0,0.00016438,2]
[352506342,1739141451368,-500.0,0.00016438,2]
[352506343,1739141451378,-500.0,0.00016438,2]
[352506344,1739141451387,-500.0,0.00016438,2]
[352506345,1739141451397,-500.0,0.00016438,2]
[352506346,1739141451407,-500.0,0.00016438,2]
[352506347,1739141451417,-500.0,0.00016438,2]
[352506348,1739141451426,-500.0,0.00016438,2]
[352506349,1739141451436,-272.72621062,0.00016438,2]
[352506350,1739141451445,-500.0,0.00016438,2]
[352506351,1739141451455,-160.0,0.00016439,2]
[352506352,1739141451464,-3000.0,0.0001644,2]
[352506353,1739141451475,-160.0,0.00016449,2]
[352506354,1739141451484,-3000.0,0.0001645,2]
[352506355,1739141451493,-160.0,0.00016459,2]
[352506356,1739141451502,-3000.0,0.0001646,2]
[352506357,1739141451512,-1483.12351443,0.00016467,2]
[352506358,1739141451521,-3000.0,0.0001647,2]
[352506359,1739141451531,-3000.0,0.0001648,2]
[352506360,1739141451540,-3000.0,0.0001649,2]
[352506361,1739141451550,-160.0,0.00016499,2]
[352506362,1739141451559,-3000.0,0.000165,2]
[352506363,1739141451568,-7438.69753278,0.000165,7]
[352506364,1739141451578,-3000.0,0.0001651,2]
[352506365,1739141451587,-3000.0,0.0001652,2]
[352506366,1739141451596,-3000.0,0.0001653,2]
[352506367,1739141451605,-3000.0,0.0001654,2]
[352506368,1739141451615,-3000.0,0.0001655,2]
[352506369,1739141451624,-3000.0,0.0001656,2]
[352506370,1739141451634,-288.0,0.0001656,2]
[352506371,1739141451643,-160.0,0.00016567,2]
[352506372,1739141451652,-1483.12351443,0.00016567,2]
[352506373,1739141451661,-3000.0,0.0001657,2]
[352506374,1739141451670,-160.0,0.00016579,2]
[352506375,1739141451679,-3613.974147,0.0001658,2]
[352506376,1739141451689,-567.0,0.00016644,2]
[352506377,1739141451699,-600.0,0.00016644,2]
[352506378,1739141451708,-1483.12351443,0.00016667,2]
[352506379,1739141451717,-538.0,0.0001667,3]
[352506380,1739141451726,-1483.12351443,0.00016767,2]
[352506381,1739141451736,-160.0,0.00016805,2]
[352506382,1739141451745,-1483.12351443,0.00016867,2]
[352506383,1739141451755,-567.0,0.00016918,2]
[352506384,1739141451763,-1483.12351443,0.00016967,2]
[352506385,1739141451773,-274.22637504,0.00016973,2]
[352506386,1739141451783,-500.0,0.00016973,2]
[352506387,1739141451792,-500.0,0.00016973,2]
[352506388,1739141451801,-500.0,0.00016973,2]
[352506389,1739141451814,-500.0,0.00016973,2]
[352506390,1739141451823,-500.0,0.00016973,2]
[352506391,1739141451833,-500.0,0.00016973,2]
[352506392,1739141451842,-576.43933015,0.00016973,2]
[352506393,1739141451851,-500.0,0.00016973,2]
[352506394,1739141451861,-500.0,0.00016973,2]
[352506395,1739141451870,-509.08,0.00016986,3]
[352506396,1739141451879,-160.0,0.00016999,2]
[352506397,1739141451889,-70000.0,0.00017,3]
[352506398,1739141451898,-7003.0,0.00017,2]
[352506399,1739141451907,-1711.21583255,0.00017,5]
[352506400,1739141451916,-49566.86360442,0.00017,2]
[352506401,1739141451925,-7440.0,0.00017,7]
[352506402,1739141451935,-600.0,0.00017,4]
[352506403,1739141451944,-700.0,0.00017,3]
[352506404,1739141451954,-700.0,0.00017,3]
[352506405,1739141451964,-8914.64189073,0.00017,2]
[352506406,1739141452265,-500.0,0.00010958,2]
[352506407,1739141452275,-500.0,0.00011095,2]
[352506408,1739141452284,-500.0,0.00011232,2]
[352506409,1739141452295,-180.05,0.000137,2]
[352506410,1739141452304,-180.05,0.000137,2]
[352506411,1739141452314,-180.05,0.000137,2]
[352506412,1739141452323,-180.05,0.000137,2]
[352506413,1739141452333,-180.05,0.000137,2]
[352506414,1739141452342,-180.05,0.000137,2]
[352506415,1739141452351,-180.05,0.000137,2]
[352506416,1739141452360,-180.05,0.000137,2]
[352506417,1739141452369,-618.28774502,0.00017,2]
[352506418,1739141452381,-100227.93023601,0.00017,2]
[352506419,1739141452390,-583.0,0.00017,6]
[352506420,1739141452399,-7438.69753278,0.00017,3]
[352506421,1739141452407,-7438.69753278,0.00017,7]
[352506422,1739141452416,-151.0,0.00017,2]
[352506423,1739141452426,-151.0,0.00017,2]
[352506424,1739141452436,-151.0,0.00017,2]
[352506425,1739141452447,-151.0,0.00017,2]
[352506426,1739141452456,-151.0,0.00017037,2]
[352506427,1739141452466,-442.0,0.00017055,3]
[352506428,1739141452476,-475.07972354,0.00017067,2]
[352506429,1739141452553,-500.0,0.00011369,2]
[352506430,1739141452563,-200.0,0.00011506,2]
[352506431,1739141452624,-256.808065,0.00010958,2]
[352506432,1739141481416,438.29069101,9.812e-05,2]
[352506435,1739142330132,-499.97810412,9.406e-05,2]
[352506436,1739142331098,-306.23043622,9.406e-05,2]
[352506437,1739142427084,-270.26306246,9.406e-05,2]
[352506438,1739142428082,-742.58037809,9.406e-05,2]
[352506439,1739142435084,-791.15813777,9.406e-05,2]
[352506440,1739142440162,-554.59468122,9.406e-05,2]
[352506441,1739142446241,-486.71081108,9.312e-05,2]
[352506442,1739142450303,-17.88475607,9.312e-05,2]
[352506443,1739142450324,-133.71392462,9.413e-05,2]
[352506444,1739142545306,-658.08457108,9.413e-05,2]
[352506445,1739142545348,-250.0,9.501e-05,2]
[352506446,1739142545390,-290.7942443,9.501e-05,2]
[352506447,1739142545430,-161.2301025,9.905e-05,2]
[352506448,1739142545470,-300.0,0.00010059,2]
[352506449,1739142545516,-24900.0,0.0001006,2]
[352506450,1739142545559,-2413.3291592,0.00010129,2]
[352506451,1739142560090,400.0,0.00010685,2]
[352506452,1739142574191,-197.39246663,0.00010857,2]
[352506453,1739142574228,-500.0,0.00010958,2]
[352506454,1739142574268,-500.0,0.00010958,2]
[352506455,1739142574307,-500.0,0.00010958,2]
[352506456,1739142574347,-500.0,0.00010958,2]
[352506457,1739142574389,-134.60756842,0.00010958,2]
[352506472,1739142632507,-300.0,0.00010957,2]
[352506473,1739142632517,-500.0,0.00010958,2]
[352506474,1739142632526,-500.0,0.00010958,2]
[352506475,1739142632537,-500.0,0.00010958,2]
[352506476,1739142632547,-500.0,0.00010958,2]
[352506477,1739142632557,-500.0,0.00010958,2]
[352506478,1739142632567,-500.0,0.00010958,2]
[352506479,1739142632576,-500.0,0.00010958,2]
[352506480,1739142632586,-500.0,0.00010958,2]
[352506481,1739142632596,-509.57699855,0.00010958,2]
[352506482,1739142632605,-356.08,0.00010958,2]
[352506483,1739142632615,-500.0,0.00010958,2]
[352506484,1739142632624,-222.99573887,0.00010958,2]
[352506485,1739142632634,-500.0,0.00010958,2]
[352506486,1739142632644,-500.0,0.00010958,2]
[352506487,1739142632653,-500.0,0.00010958,2]
[352506488,1739142632663,-500.0,0.00010958,2]
[352506489,1739142632673,-500.0,0.00010958,2]
[352506490,1739142632684,-500.0,0.00010958,2]
[352506491,1739142632694,-500.0,0.00010958,2]
[352506492,1739142632703,-500.0,0.00010958,2]
[352506493,1739142632713,-500.0,0.00010958,2]
[352506494,1739142632724,-621.27753844,0.00010958,2]
[352506495,1739142632733,-500.0,0.00010958,2]
[352506496,1739142632743,-500.0,0.00010958,2]
[352506497,1739142632752,-123.93544274,0.00010958,2]
[352506499,1739142633187,-376.06455726,0.00010958,2]
[352506500,1739142633197,-500.0,0.00010958,2]
[352506501,1739142633207,-500.0,0.00010958,2]
[352506502,1739142633217,-500.0,0.00010958,2]
[352506503,1739142633227,-370.22165324,0.00010958,2]
[352506504,1739142633237,-500.0,0.00010958,2]
[352506505,1739142633247,-500.0,0.00010958,2]
[352506506,1739142633258,-500.0,0.00010958,2]
[352506507,1739142633267,-500.0,0.00010958,2]
[352506508,1739142633277,-500.0,0.00010958,2]
[352506509,1739142633291,-500.0,0.00010958,2]
[352506510,1739142633302,-500.0,0.00010958,2]
[352506511,1739142633311,-647.80687638,0.00010958,2]
[352506512,1739142633321,-500.0,0.00010958,2]
[352506513,1739142633330,-500.0,0.00010958,2]
[352506514,1739142633340,-199.57844648,0.00010958,2]
[352506515,1739142633349,-500.0,0.00010958,2]
[352506516,1739142633358,-500.0,0.00010958,2]
[352506517,1739142633368,-500.0,0.00010958,2]
[352506518,1739142633377,-500.0,0.00010958,2]
[352506519,1739142633386,-500.0,0.00010958,2]
[352506520,1739142633396,-500.0,0.00010958,2]
[352506521,1739142633405,-500.0,0.00010958,2]
[352506522,1739142633414,-500.0,0.00010958,2]
[352506523,1739142633424,-500.0,0.00010958,2]
[352506524,1739142633437,-500.0,0.00010958,2]
[352506525,1739142633446,-500.0,0.00010958,2]
[352506526,1739142633456,-500.0,0.00010958,2]
[352506527,1739142633465,-500.0,0.00010958,2]
[352506528,1739142633475,-500.0,0.00010958,2]
[352506529,1739142633484,-500.0,0.00010958,2]
[352506530,1739142633493,-500.0,0.00010958,2]
[352506531,1739142633503,-500.0,0.00010958,2]
[352506532,1739142633512,-361.63093715,0.00010958,2]
[352506533,1739142633522,-500.0,0.00010958,2]
[352506534,1739142633531,-500.0,0.00010958,2]
[352506535,1739142633544,-500.0,0.00010958,2]
[352506536,1739142633553,-500.0,0.00010958,2]
[352506537,1739142633563,-46.87855218,0.00010958,2]
[352506538,1739142633576,-453.12144782,0.00010958,2]
[352506539,1739142633585,-500.0,0.00010958,2]
[352506540,1739142633595,-500.0,0.00010958,2]
[352506541,1739142633604,-500.0,0.00010958,2]
[352506542,1739142633614,-500.0,0.00010958,2]
[352506543,1739142633624,-567.03,0.00010958,2]
[352506544,1739142633634,-596.87,0.00010958,2]
[352506545,1739142633644,-500.0,0.00010958,2]
[352506546,1739142633653,-500.0,0.00010958,2]
[352506547,1739142633663,-500.0,0.00010958,2]
[352506548,1739142633673,-500.0,0.00010958,2]
[352506549,1739142633682,-500.0,0.00010958,2]
[352506550,1739142633691,-518.21,0.00010958,2]
[352506551,1739142633700,-503.27840528,0.00010958,2]
[352506552,1739142633710,-533.35,0.00010958,2]
[352506553,1739142633720,-328.16323454,0.00010958,2]
[352506554,1739142633732,-171.83676546,0.00010958,2]
[352506555,1739142633743,-500.0,0.00010958,2]
[352506556,1739142633752,-500.0,0.00010958,2]
[352506557,1739142633762,-500.0,0.00010958,2]
[352506558,1739142633772,-500.0,0.00010958,2]
[352506559,1739142633781,-500.0,0.00010958,2]
[352506560,1739142633796,-500.0,0.00010958,2]
[352506561,1739142633805,-500.0,0.00010958,2]
[352506562,1739142633815,-500.0,0.00010958,2]
[352506563,1739142633824,-500.0,0.00010958,2]
[352506564,1739142633834,-500.0,0.00010958,2]
[352506565,1739142633844,-500.0,0.00010958,2]
[352506566,1739142633854,-525.78677848,0.00010958,2]
[352506567,1739142633864,-500.0,0.00010958,2]
[352506568,1739142633874,-2516.91,0.00010958,2]
[352506569,1739142633884,-500.0,0.00010958,2]
[352506570,1739142633894,-500.0,0.00010958,2]
[352506571,1739142633903,-500.0,0.00010958,2]
[352506572,1739142633913,-2965.78,0.00010958,2]
[352506573,1739142633923,-4537.47,0.00010958,2]
[352506574,1739142633932,-500.0,0.00010958,2]
[352506575,1739142633942,-299.87858402,0.00010958,2]
[352506576,1739142633952,-500.0,0.00010958,2]
[352506577,1739142633962,-500.0,0.00010958,2]
[352506578,1739142633971,-176.26,0.00010958,2]
[352506579,1739142633980,-500.0,0.00010958,2]
[352506580,1739142633990,-297.96,0.00010958,2]
[352506581,1739142633999,-500.0,0.00010958,2]
[352506582,1739142634009,-500.0,0.00010958,2]
[352506583,1739142634018,-500.0,0.00010958,2]
[352506584,1739142634028,-582.98,0.00010958,2]
[352506585,1739142634039,-500.0,0.00010958,2]
[352506586,1739142634049,-500.0,0.00010958,2]
[352506587,1739142634059,-500.0,0.00010958,2]
[352506588,1739142634069,-502.51161419,0.00010958,2]
[352506589,1739142634079,-500.0,0.00010958,2]
[352506590,1739142634088,-788.94,0.00010958,2]
[352506591,1739142634097,-500.0,0.00010958,2]
[352506592,1739142634107,-500.0,0.00010958,2]
[352506593,1739142634116,-500.0,0.00010958,2]
[352506594,1739142634126,-326.2,0.00010958,2]
[352506595,1739142634135,-500.0,0.00010958,2]
[352506596,1739142634144,-606.37265627,0.00010958,2]
[352506597,1739142634154,-500.0,0.00010958,2]
[352506598,1739142634163,-500.0,0.00010958,2]
[352506599,1739142634172,-500.0,0.00010958,2]
[352506600,1739142634182,-500.0,0.00010958,2]
[352506601,1739142634191,-500.0,0.00010958,2]
[352506602,1739142634200,-509.98,0.00010958,2]
[352506603,1739142634209,-500.0,0.00010958,2]
[352506604,1739142634219,-500.0,0.00010958,2]
[352506605,1739142634228,-500.0,0.00010958,2]
[352506606,1739142634238,-2264.52,0.00010958,2]
[352506607,1739142634247,-500.0,0.00010958,2]
[352506608,1739142634257,-500.0,0.00010958,2]
[352506609,1739142634267,-500.0,0.00010958,2]
[352506610,1739142634277,-500.0,0.00010958,2]
[352506611,1739142634289,-500.0,0.00010958,2]
[352506612,1739142634299,-500.0,0.00010958,2]
[352506613,1739142634308,-589.94,0.00010958,2]
[352506614,1739142634317,-500.0,0.00010958,2]
[352506615,1739142634327,-500.0,0.00010958,2]
[352506616,1739142634336,-500.0,0.00010958,2]
[352506617,1739142634346,-500.0,0.00010958,2]
[352506618,1739142634355,-231.71,0.00010958,2]
[352506619,1739142634365,-567.38,0.00010958,2]
[352506620,1739142634374,-500.0,0.00010958,2]
[352506621,1739142634383,-500.0,0.00010958,2]
[352506622,1739142634393,-500.0,0.00010958,2]
[352506623,1739142634402,-628.79,0.00010958,2]
[352506624,1739142634412,-500.0,0.00010958,2]
[352506625,1739142634421,-511.87366295,0.00010958,2]
[352506626,1739142634430,-500.0,0.00010958,2]
[352506627,1739142634440,-555.65,0.00010958,2]
[352506628,1739142634449,-500.0,0.00010958,2]
[352506629,1739142634459,-500.0,0.00010958,2]
[352506630,1739142634468,-500.0,0.00010958,2]
[352506631,1739142634478,-500.0,0.00010958,2]
[352506632,1739142634487,-190.96803487,0.00010958,2]
[352506633,1739142634496,-500.0,0.00010958,2]
[352506634,1739142634505,-500.0,0.00010958,2]
[352506635,1739142634515,-270.80088978,0.00010958,2]
[352506636,1739142634525,-500.0,0.00010958,2]
[352506637,1739142634536,-346.71239353,0.00010958,2]
[352506685,1739142638368,-156.08760647,0.00010958,2]
[352506687,1739142638378,-500.0,0.00010958,2]
[352506689,1739142638388,-500.0,0.00010958,2]
[352506691,1739142638398,-500.0,0.00010958,2]
[352506693,1739142638409,-517.69,0.00010958,2]
[352506696,1739142638418,-603.22,0.00010958,2]
[352506698,1739142638428,-500.0,0.00010958,2]
[352506700,1739142638436,-500.0,0.00010958,2]
[352506702,1739142638444,-500.0,0.00010958,2]
[352506704,1739142638452,-500.0,0.00010958,2]
[352506706,1739142638459,-500.0,0.00010958,2]
[352506708,1739142638469,-500.0,0.00010958,2]
[352506710,1739142638478,-500.0,0.00010958,2]
[352506712,1739142638488,-500.0,0.00010958,2]
[352506714,1739142638497,-500.0,0.00010958,2]
[352506716,1739142638507,-471.72092326,0.00010958,2]
[352506718,1739142638516,-500.0,0.00010958,2]
[352506720,1739142638526,-500.0,0.00010958,2]
[352506722,1739142638536,-500.0,0.00010958,2]
[352506724,1739142638549,-500.0,0.00010958,2]
[352506726,1739142638559,-500.0,0.00010958,2]
[352506728,1739142638568,-500.0,0.00010958,2]
[352506730,1739142638578,-500.0,0.00010958,2]
[352506732,1739142638587,-500.0,0.00010958,2]
[352506734,1739142638596,-500.0,0.00010958,2]
[352506736,1739142638606,-500.0,0.00010958,2]
[352506738,1739142638615,-500.0,0.00010958,2]
[352506740,1739142638625,-520.28,0.00010958,2]
[352506742,1739142638634,-500.0,0.00010958,2]
[352506744,1739142638643,-500.0,0.00010958,2]
[352506746,1739142638652,-500.0,0.00010958,2]
[352506748,1739142638661,-500.0,0.00010958,2]
[352506750,1739142638671,-500.0,0.00010958,2]
[352506752,1739142638680,-500.0,0.00010958,2]
[352506755,1739142638690,-500.0,0.00010958,2]
[352506757,1739142638700,-498.86243158,0.00010958,2]
[352506759,1739142638709,-528.07,0.00010958,2]
[352506761,1739142638718,-500.0,0.00010958,2]
[352506763,1739142638728,-226.83401468,0.00010958,2]
[352506765,1739142638737,-813.41,0.00010958,2]
[352506767,1739142638747,-196.92,0.00010958,2]
[352506769,1739142638756,-500.0,0.00010958,2]
[352506771,1739142638765,-500.0,0.00010958,2]
[352506773,1739142638774,-541.26,0.00010958,2]
[352506775,1739142638786,-500.0,0.00011094,2]
[352506777,1739142638799,-500.0,0.00011094,2]
[352506779,1739142638808,-500.0,0.00011094,2]
[352506780,1739142638818,-496.69380343,0.00011094,2]
[352506781,1739142638828,-500.0,0.00011094,2]
[352506782,1739142638837,-500.0,0.00011094,2]
[352506783,1739142638846,-500.0,0.00011094,2]
[352506784,1739142638855,-500.0,0.00011094,2]
[352506785,1739142638868,-500.0,0.00011094,2]
[352506786,1739142638878,-500.0,0.00011094,2]
[352506787,1739142638887,-500.0,0.00011094,2]
[352506788,1739142638897,-556.02333752,0.00011094,2]
[352506789,1739142638906,-500.0,0.00011094,2]
[352506790,1739142638916,-500.0,0.00011094,2]
[352506791,1739142638926,-500.0,0.00011094,2]
[352506792,1739142638936,-500.0,0.00011095,2]
[352506793,1739142638945,-500.0,0.00011095,2]
[352506794,1739142638955,-500.0,0.00011095,2]
[352506795,1739142638964,-500.0,0.00011095,2]
[352506796,1739142638974,-500.0,0.00011095,2]
[352506797,1739142638984,-500.0,0.00011095,2]
[352506798,1739142638993,-500.0,0.00011095,2]
[352506800,1739142639002,-450.67224111,0.00011095,2]
[352506802,1739142639012,-500.0,0.00011095,2]
[352506804,1739142639021,-500.0,0.00011095,2]
[352506806,1739142639031,-500.0,0.00011095,2]
[352506808,1739142639042,-500.0,0.00011095,2]
[352506809,1739142639052,-500.0,0.00011095,2]
[352506810,1739142639062,-503.69229465,0.00011095,2]
[352506811,1739142639071,-500.0,0.00011095,2]
[352506812,1739142639080,-500.0,0.00011095,2]
[352506813,1739142639090,-500.0,0.00011095,2]
[352506814,1739142639099,-500.0,0.00011095,2]
[352506815,1739142639108,-500.0,0.00011095,2]
[352506816,1739142639118,-500.0,0.00011095,2]
[352506817,1739142639128,-270.2,0.00011095,2]
[352506818,1739142639137,-500.0,0.00011095,2]
[352506819,1739142639146,-288.28,0.00011095,2]
[352506820,1739142639155,-644.56,0.00011095,2]
[352506821,1739142639165,-500.0,0.00011095,2]
[352506822,1739142639174,-500.0,0.00011095,2]
[352506823,1739142639183,-518.21,0.00011095,2]
[352506824,1739142639192,-500.0,0.00011095,2]
[352506825,1739142639202,-347.12,0.00011095,2]
[352506826,1739142639212,-500.0,0.00011095,2]
[352506827,1739142639222,-454.01,0.00011095,2]
[352506828,1739142639231,-599.89,0.00011095,2]
[352506829,1739142639241,-500.0,0.00011095,2]
[352506830,1739142639251,-2516.91,0.00011095,2]
[352506831,1739142639260,-383.86,0.00011095,2]
[352506832,1739142639270,-500.0,0.00011095,2]
[352506833,1739142639280,-500.0,0.00011095,2]
[352506834,1739142639297,-4537.47,0.00011095,2]
[352506835,1739142639306,-2965.78,0.00011095,2]
[352506836,1739142639315,-500.0,0.00011095,2]
[352506837,1739142639326,-372.72,0.00011095,2]
[352506838,1739142639335,-500.0,0.00011095,2]
[352506839,1739142639345,-500.0,0.00011095,2]
[352506840,1739142639355,-500.0,0.00011095,2]
[352506841,1739142639367,-582.98,0.00011095,2]
[352506842,1739142639376,-788.94,0.00011095,2]
[352506843,1739142639386,-500.0,0.00011095,2]
[352506844,1739142639395,-500.0,0.00011095,2]
[352506845,1739142639405,-500.0,0.00011095,2]
[352506846,1739142639415,-500.0,0.00011095,2]
[352506847,1739142639425,-500.0,0.00011095,2]
[352506848,1739142639434,-500.0,0.00011095,2]
[352506849,1739142639444,-500.0,0.00011095,2]
[352506850,1739142639453,-500.0,0.00011095,2]
[352506851,1739142639463,-308.69809444,0.00011095,2]
[352506852,1739142639472,-500.0,0.00011095,2]
[352506853,1739142639481,-2264.52,0.00011095,2]
[352506854,1739142639491,-500.0,0.00011095,2]
[352506855,1739142639500,-500.0,0.00011095,2]
[352506856,1739142639510,-511.96,0.00011095,2]
[352506857,1739142639520,-500.0,0.00011095,2]
[352506858,1739142639530,-500.0,0.00011095,2]
[352506859,1739142639545,-500.0,0.00011095,2]
[352506860,1739142639555,-500.0,0.00011095,2]
[352506861,1739142639565,-555.65,0.00011095,2]
[352506862,1739142639575,-500.0,0.00011095,2]
[352506863,1739142639585,-500.0,0.00011095,2]
[352506864,1739142639595,-503.93,0.00011095,2]
[352506865,1739142639605,-500.0,0.00011095,2]
[352506866,1739142639615,-500.0,0.00011095,2]
[352506867,1739142639624,-502.8,0.00011095,2]
[352506868,1739142639634,-500.0,0.00011095,2]
[352506869,1739142639644,-603.22,0.00011095,2]
[352506870,1739142639653,-500.0,0.00011095,2]
[352506871,1739142639663,-500.0,0.00011095,2]
[352506872,1739142639673,-500.0,0.00011095,2]
[352506873,1739142639682,-500.0,0.00011095,2]
[352506874,1739142639692,-500.0,0.00011095,2]
[352506875,1739142639702,-500.0,0.00011095,2]
[352506877,1739142639711,-500.0,0.00011095,2]
[352506879,1739142639721,-500.0,0.00011095,2]
[352506881,1739142639731,-500.0,0.00011095,2]
[352506882,1739142639741,-500.0,0.00011095,2]
[352506883,1739142639751,-500.0,0.00011095,2]
[352506884,1739142639761,-262.4,0.00011095,2]
[352506885,1739142639771,-500.0,0.00011095,2]
[352506886,1739142639782,-500.0,0.00011095,2]
[352506887,1739142639797,-813.41,0.00011095,2]
[352506888,1739142639807,-500.0,0.00011095,2]
[352506889,1739142639816,-500.0,0.00011095,2]
[352506890,1739142639825,-541.26,0.00011095,2]
[352506891,1739142639835,-284.54,0.00011232,2]
[352506892,1739142639845,-500.0,0.00011232,2]
[352506893,1739142639854,-500.0,0.00011232,2]
[352506894,1739142639863,-500.0,0.00011232,2]
[352506895,1739142639875,-500.0,0.00011232,2]